fUST/lending_fUST_20240114
["ID","MTS","AMOUNT","RATE_DAILY","PERIOD"]
[311538180,1705201838666,-246.32054593,0.0003,5]
[311538182,1705201838676,-687.21028914,0.0003,4]
[311538184,1705201838685,-1212.32730776,0.0003,2]
[311538186,1705201838695,-1490.73105059,0.0003,2]
[311538188,1705201838705,-1212.32730776,0.0003,2]
[311538189,1705201838714,-192.0,0.0003,2]
[311538191,1705201838724,-155.38396562,0.00030132,2]
[311538193,1705201838733,-8412.14302205,0.00030132,4]
[311538195,1705201838742,-155.18522897,0.00030132,4]
[311538196,1705201838751,-2704.97113721,0.00030132,4]
[311538198,1705201838760,-1742.54016348,0.00030133,4]
[311538200,1705201838769,-2040.19945881,0.00030134,4]
[311538202,1705201838779,-392.61912595,0.00030134,2]
[311538204,1705201838788,-272.97998012,0.00030134,4]
[311538206,1705201838797,-158.61433982,0.00030134,4]
[311538208,1705201838808,-15885.90268571,0.00030134,4]
[311538210,1705201838817,-421.33175717,0.00030134,2]
[311538212,1705201838827,-4712.57883465,0.00030134,3]
[311538214,1705201838836,-1583.30194869,0.00030134,4]
[311538216,1705201838845,-2882.79183896,0.00030135,4]
[311538218,1705201838854,-501.96851689,0.00030136,2]
[311538220,1705201838863,-500.0,0.00030136,2]
[311538222,1705201838872,-500.0,0.00030136,2]
[311538224,1705201838882,-502.22175438,0.00030136,2]
[311538226,1705201838891,-500.0,0.00030136,2]
[311538228,1705201838900,-500.0,0.00030136,2]
[311538230,1705201838909,-564.21902284,0.00030136,2]
[311538232,1705201838918,-500.0,0.00030136,2]
[311538235,1705201838929,-500.0,0.00030136,2]
[311538237,1705201838939,-500.0,0.00030136,2]
[311538239,1705201838948,-262.26882862,0.00030136,2]
[311538241,1705201838958,-501.81359818,0.00030136,2]
[311538243,1705201838967,-500.0,0.00030136,2]
[311538245,1705201838976,-500.0,0.00030136,2]
[311538247,1705201838985,-386.90018719,0.00030136,2]
[311538249,1705201838994,-500.0,0.00030136,2]
[311538251,1705201839003,-500.0,0.00030136,2]
[311538253,1705201839012,-500.0,0.00030136,2]
[311538255,1705201839022,-195.11807323,0.00030136,2]
[311538257,1705201839031,-506.04398539,0.00030136,2]
[311538259,1705201839041,-308.95333986,0.00030136,2]
[311538261,1705201839050,-500.0,0.00030136,2]
[311538263,1705201839059,-500.0,0.00030136,2]
[311538264,1705201839069,-500.0,0.00030136,2]
[311538266,1705201839078,-500.0,0.00030136,2]
[311538267,1705201839087,-500.0,0.00030136,2]
[311538268,1705201839097,-688.1402264,0.00030136,2]
[311538269,1705201839106,-500.0,0.00030136,2]
[311538270,1705201839117,-500.0,0.00030136,2]
[311538271,1705201839126,-198.01866133,0.00030136,2]
[311538272,1705201839135,-500.0,0.00030136,2]
[311538273,1705201839145,-343.96365382,0.00030136,2]
[311538274,1705201839154,-500.0,0.00030136,2]
[311538275,1705201839163,-500.0,0.00030136,2]
[311538276,1705201839172,-346.64960511,0.00030136,2]
[311538277,1705201839182,-500.0,0.00030136,2]
[311538278,1705201839193,-500.0,0.00030136,2]
[311538279,1705201839204,-500.0,0.00030136,2]
[311538280,1705201839214,-501.7884904,0.00030136,2]
[311538281,1705201839223,-500.0,0.00030136,2]
[311538282,1705201839233,-500.0,0.00030136,2]
[311538283,1705201839245,-500.0,0.00030136,2]
[311538284,1705201839255,-500.0,0.00030136,2]
[311538285,1705201839265,-504.33509197,0.00030136,2]
[311538286,1705201839275,-453.24259165,0.00030136,2]
[311538287,1705201839285,-500.0,0.00030136,2]
[311538288,1705201839295,-500.0,0.00030136,2]
[311538289,1705201839305,-508.43949603,0.00030136,2]
[311538290,1705201839315,-500.0,0.00030136,2]
[311538291,1705201839324,-500.0,0.00030136,2]
[311538292,1705201839334,-500.0,0.00030136,2]
[311538293,1705201839343,-470.23578443,0.00030136,2]
[311538294,1705201839352,-500.0,0.00030136,2]
[311538295,1705201839361,-214.17436321,0.00030136,2]
[311538296,1705201839372,-500.0,0.00030136,2]
[311538297,1705201839382,-500.0,0.00030136,2]
[311538298,1705201839393,-500.0,0.00030136,2]
[311538299,1705201839403,-529.78472823,0.00030136,2]
[311538300,1705201839412,-501.80714204,0.00030136,2]
[311538301,1705201839422,-500.0,0.00030136,2]
[311538302,1705201839431,-500.0,0.00030136,2]
[311538303,1705201839440,-501.9980605,0.00030136,2]
[311538304,1705201839451,-500.0,0.00030136,2]
[311538305,1705201839462,-500.0,0.00030136,2]
[311538306,1705201839471,-500.0,0.00030136,2]
[311538307,1705201839481,-500.0,0.00030136,2]
[311538308,1705201839490,-183.47243345,0.00030136,2]
[311538309,1705201839499,-500.0,0.00030136,2]
[311538310,1705201839509,-500.0,0.00030136,2]
[311538311,1705201839519,-502.5804102,0.00030136,2]
[311538312,1705201839528,-500.59988179,0.00030136,2]
[311538313,1705201839538,-676.41,0.00030136,2]
[311538314,1705201839548,-503.04789827,0.00030136,2]
[311538315,1705201839558,-500.0,0.00030136,2]
[311538316,1705201839567,-502.85863465,0.00030136,2]
[311538317,1705201839576,-500.0,0.00030136,2]
[311538318,1705201839586,-508.28923396,0.00030136,2]
[311538319,1705201839595,-500.0,0.00030136,2]
[311538320,1705201839605,-508.05605959,0.00030136,2]
[311538321,1705201839615,-500.0,0.00030136,2]
[311538322,1705201839746,-500.0,0.00030136,2]
[311538323,1705201839755,-500.0,0.00030136,2]
[311538324,1705201839765,-500.0,0.00030136,2]
[311538325,1705201839775,-500.0,0.00030136,2]
[311538326,1705201839785,-500.0,0.00030136,2]
[311538327,1705201839796,-500.0,0.00030136,2]
[311538328,1705201839805,-500.0,0.00030136,2]
[311538329,1705201839814,-500.0,0.00030136,2]
[311538330,1705201839823,-500.0,0.00030136,2]
[311538331,1705201839833,-500.0,0.00030136,2]
[311538332,1705201839842,-500.0,0.00030136,2]
[311538333,1705201839851,-500.0,0.00030136,2]
[311538334,1705201839861,-500.0,0.00030136,2]
[311538335,1705201839870,-500.0,0.00030136,2]
[311538336,1705201839880,-500.0,0.00030136,2]
[311538337,1705201839889,-500.0,0.00030136,2]
[311538338,1705201839898,-500.0,0.00030136,2]
[311538339,1705201839907,-500.0,0.00030136,2]
[311538340,1705201839917,-501.5,0.00030136,2]
[311538341,1705201839926,-500.0,0.00030136,2]
[311538342,1705201839935,-1487.01,0.00030136,2]
[311538343,1705201839945,-500.0,0.00030136,2]
[311538344,1705201839954,-500.0,0.00030136,2]
[311538345,1705201839963,-501.80968584,0.00030136,2]
[311538346,1705201839972,-500.0,0.00030136,2]
[311538347,1705201839982,-5550.3,0.00030136,2]
[311538348,1705201839991,-500.0,0.00030136,2]
[311538349,1705201840000,-501.42133558,0.00030136,2]
[311538350,1705201840009,-633.23207699,0.00030136,2]
[311538351,1705201840018,-500.0,0.00030136,2]
[311538352,1705201840027,-500.0,0.00030136,2]
[311538353,1705201840036,-693.97,0.00030136,2]
[311538354,1705201840046,-500.0,0.00030136,2]
[311538355,1705201840055,-500.0,0.00030136,2]
[311538356,1705201840065,-500.0,0.00030136,2]
[311538357,1705201840074,-500.0,0.00030136,2]
[311538358,1705201840083,-406.0743424,0.00030136,2]
[311538359,1705201840093,-500.0,0.00030136,2]
[311538360,1705201840102,-354.86930357,0.00030136,2]
[311538361,1705201840111,-500.0,0.00030136,2]
[311538362,1705201840120,-500.0,0.00030136,2]
[311538363,1705201840130,-500.0,0.00030136,2]
[311538364,1705201840139,-500.0,0.00030136,2]
[311538365,1705201840148,-500.0,0.00030136,2]
[311538366,1705201840158,-509.43458407,0.00030136,2]
[311538367,1705201840167,-500.0,0.00030136,2]
[311538368,1705201840176,-500.0,0.00030136,2]
[311538369,1705201840185,-500.0,0.00030136,2]
[311538370,1705201840194,-500.0,0.00030136,2]
[311538371,1705201840203,-500.0,0.00030136,2]
[311538372,1705201840211,-1158.25,0.00030136,2]
[311538373,1705201840221,-501.85532918,0.00030136,2]
[311538374,1705201840229,-502.24408651,0.00030136,2]
[311538375,1705201840238,-3776.47,0.00030136,2]
[311538376,1705201840247,-501.8944399,0.00030136,2]
[311538377,1705201840256,-500.0,0.00030136,2]
[311538378,1705201840266,-500.0,0.00030136,2]
[311538379,1705201840275,-500.0,0.00030136,2]
[311538380,1705201840284,-500.0,0.00030136,2]
[311538381,1705201840293,-500.0,0.00030136,2]
[311538382,1705201840302,-557.26811774,0.00030136,2]
[311538383,1705201840311,-500.0,0.00030136,2]
[311538384,1705201840321,-500.0,0.00030136,2]
[311538385,1705201840331,-500.0,0.00030136,2]
[311538386,1705201840340,-1113.19,0.00030136,2]
[311538387,1705201840350,-573.77,0.00030136,2]
[311538388,1705201840359,-500.0,0.00030136,2]
[311538389,1705201840368,-500.0,0.00030136,2]
[311538390,1705201840377,-500.0,0.00030136,2]
[311538391,1705201840386,-500.0,0.00030136,2]
[311538392,1705201840395,-500.0,0.00030136,2]
[311538393,1705201840404,-501.26599081,0.00030136,2]
[311538394,1705201840413,-500.0,0.00030136,2]
[311538395,1705201840422,-500.0,0.00030136,2]
[311538396,1705201840430,-500.0,0.00030136,2]
[311538397,1705201840441,-500.63100794,0.00030136,2]
[311538398,1705201840450,-153.0,0.00030137,2]
[311538399,1705201840460,-153.0,0.00030137,2]
[311538400,1705201840469,-306.2535945,0.00030137,2]
[311538401,1705201840479,-306.0,0.00030137,2]
[311538402,1705201840490,-306.2703506,0.00030137,2]
[311538403,1705201840501,-153.0,0.00030137,2]
[311538404,1705201840510,-153.0,0.00030137,2]
[311538405,1705201840519,-415.05618062,0.00030406,2]
[311538406,1705201840528,-500.0,0.00030406,2]
[311538407,1705201840537,-473.69285594,0.00030406,2]
[311538408,1705201840546,-228.80865474,0.00030406,2]
[311538409,1705201840555,-500.0,0.00030407,2]
[311538410,1705201840566,-500.0,0.00030407,2]
[311538411,1705201840577,-500.0,0.00030407,2]
[311538412,1705201840588,-500.0,0.00030407,2]
[311538413,1705201840597,-500.0,0.00030407,2]
[311538414,1705201840606,-500.0,0.00030407,2]
[311538415,1705201840616,-500.0,0.00030407,2]
[311538416,1705201840626,-501.74296753,0.00030407,2]
[311538417,1705201840636,-500.0,0.00030407,2]
[311538418,1705201840645,-524.97495764,0.00030407,2]
[311538419,1705201840654,-502.83244463,0.00030407,2]
[311538420,1705201840664,-500.0,0.00030407,2]
[311538421,1705201840674,-507.36095942,0.00030407,2]
[311538422,1705201840684,-500.0,0.00030407,2]
[311538423,1705201840694,-503.44180302,0.00030407,2]
[311538424,1705201840704,-280.0,0.00030407,2]
[311538425,1705201840716,-496.52264113,0.00030407,2]
[311538426,1705201840726,-500.0,0.00030407,2]
[311538427,1705201840736,-500.0,0.00030407,2]
[311538428,1705201840746,-500.0,0.00030407,2]
[311538429,1705201840765,-516.90690765,0.00030407,2]
[311538430,1705201840775,-500.0,0.00030407,2]
[311538431,1705201840784,-500.0,0.00030407,2]
[311538432,1705201840793,-500.0,0.00030407,2]
[311538433,1705201840803,-500.0,0.00030407,2]
[311538434,1705201840813,-502.85513942,0.00030407,2]
[311538435,1705201840822,-500.0,0.00030407,2]
[311538436,1705201840831,-566.47059426,0.00030407,2]
[311538437,1705201840841,-500.0,0.00030407,2]
[311538438,1705201840850,-500.0,0.00030407,2]
[311538439,1705201840859,-500.0,0.00030407,2]
[311538440,1705201840869,-503.21825677,0.00030407,2]
[311538441,1705201840879,-500.0,0.00030407,2]
[311538442,1705201840889,-500.0,0.00030407,2]
[311538443,1705201840898,-500.0,0.00030407,2]
[311538444,1705201840909,-500.0,0.00030407,2]
[311538445,1705201840918,-500.0,0.00030407,2]
[311538446,1705201840928,-500.0,0.00030407,2]
[311538447,1705201840937,-509.09239575,0.00030407,2]
[311538448,1705201840947,-500.0,0.00030407,2]
[311538449,1705201840956,-256.74192711,0.00030407,2]
[311538450,1705201840965,-500.0,0.00030407,2]
[311538451,1705201840975,-503.79190715,0.00030407,2]
[311538452,1705201840984,-500.0,0.00030407,2]
[311538453,1705201840994,-500.0,0.00030407,2]
[311538454,1705201841003,-500.0,0.00030407,2]
[311538455,1705201841013,-500.0,0.00030407,2]
[311538456,1705201841022,-500.0,0.00030407,2]
[311538457,1705201841032,-516.74625266,0.00030407,2]
[311538458,1705201841041,-500.0,0.00030407,2]
[311538459,1705201841050,-500.0,0.00030407,2]
[311538460,1705201841060,-500.0,0.00030407,2]
[311538461,1705201841069,-504.18164391,0.00030407,2]
[311538462,1705201841079,-500.0,0.00030407,2]
[311538463,1705201841089,-501.27849338,0.00030407,2]
[311538464,1705201841098,-502.31888881,0.00030407,2]
[311538465,1705201841107,-501.24793934,0.00030407,2]
[311538466,1705201841116,-500.0,0.00030407,2]
[311538467,1705201841126,-500.42283029,0.00030407,2]
[311538468,1705201841135,-500.0,0.00030407,2]
[311538469,1705201841145,-500.0,0.00030407,2]
[311538470,1705201841155,-500.0,0.00030407,2]
[311538472,1705201841164,-500.0,0.00030407,2]
[311538473,1705201841174,-527.7237988,0.00030407,2]
[311538474,1705201841183,-500.0,0.00030407,2]
[311538475,1705201841194,-506.37140964,0.00030407,2]
[311538476,1705201841210,-500.85998618,0.00030407,2]
[311538477,1705201841219,-500.0,0.00030407,2]
[311538479,1705201841229,-500.0,0.00030407,2]
[311538481,1705201841239,-504.08665223,0.00030407,2]
[311538482,1705201841249,-500.0,0.00030407,2]
[311538483,1705201841259,-500.0,0.00030407,2]
[311538484,1705201841268,-505.8073812,0.00030407,2]
[311538485,1705201841279,-500.0,0.00030407,2]
[311538487,1705201841288,-500.0,0.00030407,2]
[311538488,1705201841297,-506.47856889,0.00030407,2]
[311538489,1705201841307,-500.0,0.00030407,2]
[311538490,1705201841316,-500.0,0.00030407,2]
[311538491,1705201841325,-500.0,0.00030407,2]
[311538492,1705201841334,-505.48514853,0.00030407,2]
[311538493,1705201841343,-500.0,0.00030407,2]
[311538494,1705201841353,-500.0,0.00030407,2]
[311538495,1705201841362,-502.53384804,0.00030407,2]
[311538496,1705201841372,-500.0,0.00030407,2]
[311538497,1705201841382,-500.0,0.00030407,2]
[311538498,1705201841391,-500.0,0.00030407,2]
[311538499,1705201841400,-500.0,0.00030407,2]
[311538500,1705201841409,-500.0,0.00030407,2]
[311538501,1705201841419,-501.32420891,0.00030407,2]
[311538502,1705201841428,-213.24552767,0.00030407,2]
[311538503,1705201841438,-500.0,0.00030407,2]
[311538504,1705201841447,-504.80258485,0.00030407,2]
[311538505,1705201841456,-265.77988241,0.00030408,4]
[311538506,1705201841466,-500.0,0.00030408,2]
[311538507,1705201841475,-500.0,0.00030408,2]
[311538508,1705201841484,-501.8628807,0.00030408,2]
[311538509,1705201841494,-500.0,0.00030409,2]
[311538510,1705201841504,-500.0,0.0003041,2]
[311538511,1705201841513,-512.0486216,0.0003041,2]
[311538512,1705201841524,-501.92629128,0.0003041,2]
[311538513,1705201841535,-500.91127325,0.0003041,2]
[311538514,1705201841544,-506.27531894,0.0003041,2]
[311538515,1705201841553,-503.1071224,0.0003041,2]
[311538516,1705201841562,-503.36381833,0.0003041,2]
[311538517,1705201841571,-501.20208417,0.0003041,2]
[311538518,1705201841580,-500.0,0.0003041,2]
[311538519,1705201841591,-500.0,0.0003041,2]
[311538520,1705201841601,-504.62025724,0.0003041,2]
[311538521,1705201841610,-500.0,0.0003041,2]
[311538522,1705201841619,-500.0,0.0003041,2]
[311538523,1705201841628,-500.0,0.0003041,2]
[311538524,1705201841638,-500.0,0.0003041,2]
[311538525,1705201841647,-500.0,0.0003041,2]
[311538526,1705201841658,-676.41,0.0003041,2]
[311538527,1705201841668,-500.0,0.0003041,2]
[311538528,1705201841678,-500.0,0.0003041,2]
[311538529,1705201841687,-500.0,0.0003041,2]
[311538530,1705201841697,-500.0,0.0003041,2]
[311538531,1705201841706,-506.13508093,0.0003041,2]
[311538532,1705201841716,-500.0,0.0003041,2]
[311538533,1705201841726,-500.0,0.0003041,2]
[311538534,1705201841735,-501.5,0.0003041,2]
[311538535,1705201841745,-1487.01,0.0003041,2]
[311538536,1705201841754,-500.0,0.0003041,2]
[311538537,1705201841763,-500.0,0.0003041,2]
[311538538,1705201841773,-5550.3,0.0003041,2]
[311538539,1705201841783,-500.0,0.0003041,2]
[311538540,1705201841793,-693.97,0.0003041,2]
[311538541,1705201841802,-500.0,0.0003041,2]
[311538542,1705201841812,-500.0,0.0003041,2]
[311538543,1705201841823,-500.0,0.0003041,2]
[311538544,1705201841832,-500.0,0.0003041,2]
[311538545,1705201841842,-500.0,0.0003041,2]
[311538546,1705201841852,-1158.25,0.0003041,2]
[311538547,1705201841861,-3776.47,0.0003041,2]
[311538548,1705201841871,-500.0,0.0003041,2]
[311538549,1705201841880,-517.52867803,0.0003041,2]
[311538550,1705201841890,-500.0,0.0003041,2]
[311538551,1705201841899,-976.06961492,0.0003041,2]
[311538552,1705201841918,-137.12038508,0.0003041,2]
[311538553,1705201841928,-573.77,0.0003041,2]
[311538554,1705201841938,-500.0,0.0003041,2]
[311538555,1705201841947,-500.0,0.0003041,2]
[311538556,1705201841957,-500.0,0.0003041,2]
[311538557,1705201841967,-921.201619,0.0003041,2]
[311538558,1705201841976,-921.201619,0.0003041,2]
[311538559,1705201841986,-1483.65995,0.0003041,2]
[311538560,1705201841995,-1483.65995,0.0003041,2]
[311538561,1705201842004,-144.74963067,0.0003041,2]
[311538562,1705201842165,-999.88985376,0.0002999,3]
[311538563,1705201842187,-927.28014624,0.0002999,3]
[311538564,1705201842199,-6.25036933,0.0003041,2]
[311538565,1705201842208,-155.31249568,0.00030427,7]
[311538566,1705201842217,-3086.64321961,0.00030581,3]
[311538567,1705201842227,-167.55,0.0003068,30]
[311538568,1705201842236,-500.0,0.00030681,2]
[311538569,1705201842245,-500.0,0.00030681,2]
[311538570,1705201842254,-647.56537173,0.00030681,2]
[311538571,1705201842263,-152.75120026,0.00030681,2]
[311538572,1705201842272,-500.0,0.00030681,2]
[311538573,1705201842281,-500.0,0.00030681,2]
[311538574,1705201842291,-500.0,0.00030681,2]
[311538575,1705201842300,-500.0,0.00030681,2]
[311538576,1705201842311,-209.61991632,0.00030681,2]
[311538577,1705201842320,-500.0,0.00030681,2]
[311538578,1705201842329,-500.0,0.00030681,2]
[311538579,1705201842338,-628.92033821,0.00030681,2]
[311538580,1705201842346,-500.0,0.00030681,2]
[311538581,1705201842356,-500.0,0.00030681,2]
[311538582,1705201842365,-500.0,0.00030681,2]
[311538583,1705201842374,-500.0,0.00030681,2]
[311538584,1705201842383,-502.38073849,0.00030681,2]
[311538585,1705201842392,-500.0,0.00030681,2]
[311538586,1705201842401,-500.0,0.00030681,2]
[311538587,1705201842411,-500.0,0.00030681,2]
[311538588,1705201842419,-500.0,0.00030681,2]
[311538589,1705201842428,-500.0,0.00030681,2]
[311538590,1705201842437,-500.0,0.00030681,2]
[311538591,1705201842446,-500.0,0.00030681,2]
[311538592,1705201842455,-500.0,0.00030681,2]
[311538593,1705201842464,-500.0,0.00030681,2]
[311538594,1705201842473,-500.0,0.00030681,2]
[311538595,1705201842482,-500.0,0.00030681,2]
[311538596,1705201842491,-582.04442583,0.00030681,2]
[311538597,1705201842500,-500.0,0.00030681,2]
[311538598,1705201842509,-500.0,0.00030681,2]
[311538599,1705201842518,-500.0,0.00030681,2]
[311538600,1705201842527,-504.68512897,0.00030681,2]
[311538601,1705201842536,-1483.65995,0.00030682,2]
[311538602,1705201842545,-1483.65995,0.00030682,2]
[311538603,1705201842557,-151.0,0.00030682,2]
[311538604,1705201842566,-3705.21605619,0.00030683,4]
[311538605,1705201842575,-500.0,0.00030683,2]
[311538606,1705201842584,-921.201619,0.00030683,2]
[311538607,1705201842593,-921.201619,0.00030683,2]
[311538608,1705201842602,-282.77222254,0.00030684,3]
[311538609,1705201842612,-155.01395126,0.00030684,2]
[311538610,1705201842621,-500.0,0.00030684,2]
[311538611,1705201842630,-500.0,0.00030684,2]
[311538612,1705201842639,-500.0,0.00030684,2]
[311538613,1705201842648,-285.48472833,0.00030684,2]
[311538614,1705201842658,-500.0,0.00030684,2]
[311538615,1705201842667,-500.0,0.00030684,2]
[311538616,1705201842675,-500.0,0.00030684,2]
[311538617,1705201842684,-500.0,0.00030684,2]
[311538618,1705201842694,-676.41,0.00030684,2]
[311538619,1705201842703,-500.0,0.00030684,2]
[311538620,1705201842712,-500.0,0.00030684,2]
[311538621,1705201842721,-500.0,0.00030684,2]
[311538622,1705201842730,-500.0,0.00030684,2]
[311538623,1705201842739,-625.65449341,0.00030684,2]
[311538624,1705201842748,-500.0,0.00030684,2]
[311538626,1705201842757,-501.5,0.00030684,2]
[311538628,1705201842766,-1487.01,0.00030684,2]
[311538629,1705201842775,-500.0,0.00030684,2]
[311538630,1705201842784,-5550.3,0.00030684,2]
[311538631,1705201842793,-552.97716048,0.00030684,2]
[311538632,1705201842803,-500.0,0.00030684,2]
[311538634,1705201842811,-570.36041937,0.00030684,2]
[311538644,1705201843210,-123.60958063,0.00030684,2]
[311538645,1705201843219,-500.0,0.00030684,2]
[311538646,1705201843230,-576.99524827,0.00030684,2]
[311538647,1705201843240,-500.0,0.00030684,2]
[311538648,1705201843250,-500.0,0.00030684,2]
[311538649,1705201843259,-500.0,0.00030684,2]
[311538651,1705201843268,-726.26835403,0.00030684,2]
[311538709,1705203032316,-525.94938835,0.0002746,2]
[311538711,1705203032326,-166.42256377,0.0002746,2]
[311538712,1705203032336,-460.9594683,0.00027461,2]
[311538713,1705203032346,-155.02790502,0.00027461,2]
[311538714,1705203032355,-155.02790502,0.00027462,2]
[311538715,1705203032364,-1195.92132754,0.00027462,2]
[311538716,1705203032374,-155.02790502,0.00027463,4]
[311538718,1705203032384,-97.0631006,0.00027463,2]
[311538728,1705203036766,-304567.65955302,0.00042124,60]
[311538729,1705203036791,-95432.34044698,0.00042124,30]
[311538747,1705203038528,-167.99664149,0.00027463,2]
[311538749,1705203038537,-155.02790502,0.00027464,2]
[311538751,1705203038547,-677.43954104,0.00027464,2]
[311538753,1705203038557,-260.47007699,0.00027464,2]
[311538756,1705203038567,-1576.96754057,0.00027465,2]
[311538758,1705203038576,-155.02790502,0.00027465,2]
[311538759,1705203038585,-587.43445735,0.00027466,2]
[311538761,1705203038594,-155.02790502,0.00027466,2]
[311538763,1705203038603,-2479.22804474,0.00027577,2]
[311538766,1705203038613,-615.6922432,0.0002758,2]
[311538767,1705203038622,-155.03106625,0.00027848,2]
[311538769,1705203038631,-5000.0,0.00028373,5]
[311538771,1705203038640,-276.97569382,0.00029,2]
[311538773,1705203038649,-155.03106625,0.00029329,2]
[311538775,1705203038658,-2305.37797556,0.00029347,2]
[311538777,1705203038667,-183.67484216,0.00029348,2]
[311538779,1705203038676,-163.22101389,0.00029348,2]
[311538781,1705203038685,-155.03106625,0.00029587,2]
[311538783,1705203038694,-155.03106625,0.00029687,2]
[311538785,1705203038703,-1265.2,0.0002989,3]
[311538787,1705203038712,-1395.11,0.0002989,3]
[311538788,1705203038721,-1162.59,0.0002989,3]
[311538789,1705203038730,-165.7,0.00029899,2]
[311538790,1705203038740,-165.7,0.00029899,2]
[311538791,1705203038749,-131322.63334162,0.000299,2]
[311538792,1705203038758,-267.00080824,0.000299,2]
[311538793,1705203038767,-165.7,0.00029998,2]
[311538794,1705203038776,-203.99728273,0.00029998,2]
[311538795,1705203038785,-234.39643759,0.00029998,2]
[311538796,1705203038794,-500.0,0.00029998,2]
[311538797,1705203038804,-500.0,0.00029998,2]
[311538798,1705203038813,-500.0,0.00029998,2]
[311538799,1705203038821,-462.99739497,0.00029998,2]
[311538800,1705203038830,-500.0,0.00029998,2]
[311538801,1705203038840,-414.62347259,0.00029998,2]
[311538802,1705203038849,-500.0,0.00029998,2]
[311538803,1705203038858,-228.80865474,0.00029998,2]
[311538804,1705203038867,-500.0,0.00029998,2]
[311538805,1705203038876,-500.0,0.00029998,2]
[311538806,1705203038886,-500.0,0.00029998,2]
[311538807,1705203038895,-500.0,0.00029998,2]
[311538808,1705203038904,-500.0,0.00029998,2]
[311538809,1705203038913,-173.16516161,0.00029998,2]
[311538810,1705203038923,-500.0,0.00029998,2]
[311538811,1705203038932,-500.0,0.00029998,2]
[311538812,1705203038941,-500.0,0.00029998,2]
[311538813,1705203038951,-166.00482825,0.00029998,2]
[311538814,1705203038962,-500.0,0.00029998,2]
[311538815,1705203038971,-500.0,0.00029998,2]
[311538816,1705203038980,-500.0,0.00029998,2]
[311538817,1705203038990,-500.0,0.00029998,2]
[311538818,1705203038999,-500.0,0.00029998,2]
[311538819,1705203039010,-500.0,0.00029998,2]
[311538820,1705203039019,-500.0,0.00029998,2]
[311538821,1705203039030,-500.0,0.00029998,2]
[311538822,1705203039040,-485099.21855,0.00029999,2]
[311538823,1705203039049,-300.0,0.0003,4]
[311538824,1705203039059,-7720.89915565,0.0003,2]
[311538825,1705203039068,-1212.32730776,0.0003,2]
[311538826,1705203039077,-943.41476544,0.0003,10]
[311538827,1705203039086,-1212.33943322,0.0003,2]
[311538828,1705203039095,-1504.8392935,0.00030133,2]
[311538829,1705203039105,-89568.13051362,0.00030135,4]
[311538830,1705203039114,-436.6767042,0.00030135,4]
[311538831,1705203039123,-462.47770723,0.00030135,4]
[311538832,1705203039134,-500.0,0.00030135,4]
[311538833,1705203039143,-234.51374564,0.00030135,4]
[311538834,1705203039153,-605.85654158,0.00030135,4]
[311538835,1705203039162,-501.92629128,0.00030136,2]
[311538836,1705203039172,-523.08376419,0.00030136,2]
[311538837,1705203039181,-500.0,0.00030136,2]
[311538838,1705203039190,-500.91127325,0.00030136,2]
[311538839,1705203039200,-500.0,0.00030136,2]
[311538840,1705203039211,-506.29115924,0.00030136,2]
[311538841,1705203039220,-506.27531894,0.00030136,2]
[311538842,1705203039231,-503.1071224,0.00030136,2]
[311538843,1705203039241,-205.02741157,0.00030136,2]